lending/lending_fUSD_20241115
["ID","MTS","AMOUNT","RATE_DAILY","PERIOD"]
[342288069,1731694283200,-500.0,9.875e-05,2]
[342288070,1731694283210,-500.0,9.875e-05,2]
[342288071,1731694283220,-500.0,9.875e-05,2]
[342288072,1731694283229,-500.0,9.875e-05,2]
[342288073,1731694283240,-565.41607039,9.875e-05,2]
[342288074,1731694283249,-2356.38,9.875e-05,2]
[342288075,1731694283259,-866.55,9.875e-05,2]
[342288076,1731694283268,-866.55,9.875e-05,2]
[342288077,1731694283278,-579.04,9.875e-05,2]
[342288078,1731694283288,-513.45,9.875e-05,2]
[342288079,1731694283297,-513.45,9.875e-05,2]
[342288080,1731694283307,-198.88593134,9.875e-05,2]
[342288081,1731694283317,-1168.79,9.875e-05,2]
[342288082,1731694283327,-500.0,9.875e-05,2]
[342288083,1731694283337,-1168.79,9.875e-05,2]
[342288084,1731694283347,-500.0,9.875e-05,2]
[342288085,1731694283356,-500.0,9.875e-05,2]
[342288086,1731694283365,-306.86699652,9.875e-05,2]
[342288087,1731694283374,-3595.85,9.875e-05,2]
[342288088,1731694283383,-500.0,9.875e-05,2]
[342288089,1731694283393,-500.0,9.875e-05,2]
[342288090,1731694283403,-539.56,9.875e-05,2]
[342288091,1731694283412,-539.56,9.875e-05,2]
[342288092,1731694283422,-713.61,9.875e-05,2]
[342288093,1731694283431,-713.61,9.875e-05,2]
[342288094,1731694283441,-500.0,9.875e-05,2]
[342288095,1731694283451,-500.0,9.875e-05,2]
[342288096,1731694283460,-1944.26,9.875e-05,2]
[342288097,1731694283469,-500.0,9.875e-05,2]
[342288098,1731694283478,-925.48,9.875e-05,2]
[342288099,1731694283488,-925.48,9.875e-05,2]
[342288100,1731694283498,-500.0,9.875e-05,2]
[342288101,1731694283507,-500.0,9.875e-05,2]
[342288102,1731694283517,-263.95,9.875e-05,2]
[342288103,1731694283527,-500.0,9.875e-05,2]
[342288104,1731694283536,-500.0,9.875e-05,2]
[342288105,1731694283547,-500.0,9.875e-05,2]
[342288106,1731694283561,-654.2,9.875e-05,2]
[342288107,1731694283571,-500.0,9.875e-05,2]
[342288108,1731694283582,-500.0,9.875e-05,2]
[342288109,1731694283592,-512.54,9.875e-05,2]
[342288110,1731694283601,-512.54,9.875e-05,2]
[342288111,1731694283611,-500.0,9.875e-05,2]
[342288112,1731694283620,-500.0,9.875e-05,2]
[342288113,1731694283748,-514.14,9.875e-05,2]
[342288114,1731694283769,-500.0,9.875e-05,2]
[342288115,1731694283779,-500.0,9.875e-05,2]
[342288116,1731694283789,-514.14,9.875e-05,2]
[342288117,1731694283803,-500.0,9.875e-05,2]
[342288118,1731694283813,-500.0,9.875e-05,2]
[342288119,1731694283823,-1301.27,9.875e-05,2]
[342288120,1731694283833,-1042.29,9.875e-05,2]
[342288121,1731694283843,-500.0,9.875e-05,2]
[342288122,1731694283854,-500.0,9.875e-05,2]
[342288123,1731694283864,-500.0,9.875e-05,2]
[342288124,1731694283874,-500.0,9.875e-05,2]
[342288125,1731694283884,-2804.36,9.875e-05,2]
[342288126,1731694283893,-500.0,9.875e-05,2]
[342288127,1731694283904,-500.0,9.875e-05,2]
[342288128,1731694283914,-653.18,9.875e-05,2]
[342288129,1731694283923,-653.18,9.875e-05,2]
[342288130,1731694283934,-545.36,9.875e-05,2]
[342288131,1731694283944,-545.36,9.875e-05,2]
[342288132,1731694283954,-500.0,9.875e-05,2]
[342288133,1731694283964,-500.0,9.875e-05,2]
[342288134,1731694283977,-1802.95,9.875e-05,2]
[342288135,1731694283987,-500.0,9.875e-05,2]
[342288136,1731694283997,-500.0,9.875e-05,2]
[342288137,1731694284007,-877.77,9.875e-05,2]
[342288138,1731694284018,-877.77,9.875e-05,2]
[342288139,1731694284029,-713.07,9.875e-05,2]
[342288140,1731694284040,-713.07,9.875e-05,2]
[342288141,1731694284057,-944.57,9.875e-05,2]
[342288142,1731694284067,-500.0,9.875e-05,2]
[342288143,1731694284078,-944.57,9.875e-05,2]
[342288144,1731694284089,-500.0,9.875e-05,2]
[342288145,1731694284100,-500.0,9.875e-05,2]
[342288146,1731694284110,-500.0,9.875e-05,2]
[342288147,1731694284120,-848.75,9.875e-05,2]
[342288148,1731694284131,-500.0,9.875e-05,2]
[342288149,1731694284141,-848.75,9.875e-05,2]
[342288150,1731694284152,-422.75915143,9.875e-05,2]
[342288151,1731694284162,-179.62,9.875e-05,2]
[342288152,1731694284172,-723.22,9.875e-05,2]
[342288153,1731694284183,-723.22,9.875e-05,2]
[342288154,1731694284193,-500.0,9.875e-05,2]
[342288155,1731694284204,-1798.04,9.875e-05,2]
[342288156,1731694284214,-500.0,9.875e-05,2]
[342288157,1731694284223,-500.0,9.875e-05,2]
[342288158,1731694284233,-1607.14,9.875e-05,2]
[342288159,1731694284244,-661.63,9.875e-05,2]
[342288160,1731694284254,-1607.14,9.875e-05,2]
[342288161,1731694284264,-661.63,9.875e-05,2]
[342288162,1731694284274,-500.0,9.875e-05,2]
[342288163,1731694284286,-500.0,9.875e-05,2]
[342288164,1731694284295,-500.0,9.875e-05,2]
[342288165,1731694284311,-500.0,9.875e-05,2]
[342288166,1731694284320,-500.0,9.875e-05,2]
[342288167,1731694284331,-500.0,9.875e-05,2]
[342288168,1731694284341,-936.56,9.875e-05,2]
[342288169,1731694284351,-500.0,9.875e-05,2]
[342288170,1731694284361,-1349.44,9.875e-05,2]
[342288171,1731694284371,-981.13,9.875e-05,2]
[342288172,1731694284381,-846.22,9.875e-05,2]
[342288173,1731694284391,-981.13,9.875e-05,2]
[342288174,1731694284401,-846.22,9.875e-05,2]
[342288175,1731694284410,-500.0,9.875e-05,2]
[342288176,1731694284420,-500.0,9.875e-05,2]
[342288177,1731694284430,-500.0,9.875e-05,2]
[342288178,1731694284441,-500.0,9.875e-05,2]
[342288179,1731694284451,-500.0,9.875e-05,2]
[342288180,1731694284460,-1443.55,9.875e-05,2]
[342288181,1731694284471,-1443.55,9.875e-05,2]
[342288182,1731694284481,-510.69,9.875e-05,2]
[342288183,1731694284491,-510.69,9.875e-05,2]
[342288184,1731694284501,-743.66,9.875e-05,2]
[342288185,1731694284512,-500.0,9.875e-05,2]
[342288186,1731694284521,-590.4,9.875e-05,2]
[342288187,1731694284531,-590.4,9.875e-05,2]
[342288188,1731694284541,-510.98,9.875e-05,2]
[342288189,1731694284553,-510.98,9.875e-05,2]
[342288190,1731694284563,-822.53,9.875e-05,2]
[342288191,1731694284573,-822.53,9.875e-05,2]
[342288192,1731694284583,-500.0,9.875e-05,2]
[342288193,1731694284593,-500.0,9.875e-05,2]
[342288194,1731694284603,-718.38,9.875e-05,2]
[342288195,1731694284614,-500.0,9.875e-05,2]
[342288196,1731694284624,-500.0,9.875e-05,2]
[342288197,1731694284634,-569.69,9.875e-05,2]
[342288198,1731694284643,-569.69,9.875e-05,2]
[342288199,1731694284653,-500.0,9.875e-05,2]
[342288200,1731694284663,-500.0,9.875e-05,2]
[342288201,1731694284672,-1150.64,9.875e-05,2]
[342288202,1731694284683,-1150.64,9.875e-05,2]
[342288203,1731694284692,-500.0,9.875e-05,2]
[342288204,1731694284703,-500.0,9.875e-05,2]
[342288205,1731694284713,-500.0,9.875e-05,2]
[342288206,1731694284724,-500.0,9.875e-05,2]
[342288207,1731694284734,-1041.05,9.875e-05,2]
[342288208,1731694284744,-1041.05,9.875e-05,2]
[342288209,1731694284758,-1621.69,9.875e-05,2]
[342288210,1731694284768,-1621.69,9.875e-05,2]
[342288211,1731694284777,-500.0,9.875e-05,2]
[342288212,1731694284787,-500.0,9.875e-05,2]
[342288213,1731694284796,-500.0,9.875e-05,2]
[342288214,1731694284810,-2209.9,9.875e-05,2]
[342288215,1731694284820,-500.0,9.875e-05,2]
[342288216,1731694284830,-3512.82,9.875e-05,2]
[342288217,1731694284840,-500.0,9.875e-05,2]
[342288218,1731694284850,-500.0,9.875e-05,2]
[342288219,1731694284860,-500.0,9.875e-05,2]
[342288220,1731694284869,-500.0,9.875e-05,2]
[342288221,1731694284879,-570.65,9.875e-05,2]
[342288222,1731694284888,-570.65,9.875e-05,2]
[342288223,1731694284899,-500.0,9.875e-05,2]
[342288224,1731694284910,-500.0,9.875e-05,2]
[342288225,1731694284920,-500.0,9.875e-05,2]
[342288226,1731694284930,-500.0,9.875e-05,2]
[342288227,1731694284941,-3134.84,9.875e-05,2]
[342288228,1731694284952,-2602.02,9.875e-05,2]
[342288229,1731694284961,-537.66,9.875e-05,2]
[342288230,1731694284974,-615.49,9.875e-05,2]
[342288231,1731694284984,-537.66,9.875e-05,2]
[342288232,1731694284993,-615.49,9.875e-05,2]
[342288233,1731694285003,-513.01,9.875e-05,2]
[342288234,1731694285013,-924.06,9.875e-05,2]
[342288235,1731694285023,-513.01,9.875e-05,2]
[342288236,1731694285033,-924.06,9.875e-05,2]
[342288237,1731694285043,-927.5,9.875e-05,2]
[342288238,1731694285057,-927.5,9.875e-05,2]
[342288239,1731694285067,-1026.64,9.875e-05,2]
[342288240,1731694285077,-500.0,9.875e-05,2]
[342288241,1731694285087,-500.0,9.875e-05,2]
[342288242,1731694285098,-943.65,9.875e-05,2]
[342288243,1731694285107,-943.65,9.875e-05,2]
[342288244,1731694285117,-500.0,9.875e-05,2]
[342288245,1731694285127,-500.0,9.875e-05,2]
[342288246,1731694285137,-1998.77,9.875e-05,2]
[342288247,1731694285147,-500.0,9.875e-05,2]
[342288248,1731694285157,-500.0,9.875e-05,2]
[342288249,1731694285167,-529.99,9.875e-05,2]
[342288250,1731694285177,-516.86,9.875e-05,2]
[342288251,1731694285187,-529.99,9.875e-05,2]
[342288252,1731694285198,-516.86,9.875e-05,2]
[342288253,1731694285210,-500.0,9.875e-05,2]
[342288254,1731694285220,-500.0,9.875e-05,2]
[342288255,1731694285230,-500.0,9.875e-05,2]
[342288256,1731694285240,-260.77067123,9.875e-05,2]
[342288257,1731694285250,-500.0,9.875e-05,2]
[342288258,1731694285260,-500.0,9.875e-05,2]
[342288259,1731694285269,-526.46,9.875e-05,2]
[342288260,1731694285280,-500.0,9.875e-05,2]
[342288261,1731694285292,-526.46,9.875e-05,2]
[342288262,1731694285307,-723.07,9.875e-05,2]
[342288263,1731694285318,-723.07,9.875e-05,2]
[342288264,1731694285328,-500.0,9.875e-05,2]
[342288265,1731694285338,-500.0,9.875e-05,2]
[342288266,1731694285349,-500.0,9.875e-05,2]
[342288267,1731694285359,-500.0,9.875e-05,2]
[342288268,1731694285369,-500.0,9.875e-05,2]
[342288269,1731694285379,-500.0,9.875e-05,2]
[342288270,1731694285389,-500.0,9.875e-05,2]
[342288271,1731694285399,-1384.55,9.875e-05,2]
[342288272,1731694285410,-1384.55,9.875e-05,2]
[342288273,1731694285420,-500.0,9.875e-05,2]
[342288274,1731694285429,-500.0,9.875e-05,2]
[342288275,1731694285438,-500.0,9.875e-05,2]
[342288276,1731694285447,-500.0,9.875e-05,2]
[342288277,1731694285456,-500.0,9.875e-05,2]
[342288278,1731694285465,-626.1,9.875e-05,2]
[342288279,1731694285474,-500.0,9.875e-05,2]
[342288280,1731694285483,-626.1,9.875e-05,2]
[342288281,1731694285492,-1041.5,9.875e-05,2]
[342288282,1731694285502,-500.0,9.875e-05,2]
[342288283,1731694285511,-500.0,9.875e-05,2]
[342288284,1731694285520,-667.51,9.875e-05,2]
[342288285,1731694285530,-661.01,9.875e-05,2]
[342288286,1731694285539,-661.01,9.875e-05,2]
[342288287,1731694285552,-500.0,9.875e-05,2]
[342288288,1731694285561,-500.0,9.875e-05,2]
[342288289,1731694285570,-500.0,9.875e-05,2]
[342288290,1731694285580,-500.0,9.875e-05,2]
[342288291,1731694285589,-500.0,9.875e-05,2]
[342288292,1731694285599,-500.0,9.875e-05,2]
[342288293,1731694285608,-1238.12,9.875e-05,2]
[342288294,1731694285617,-1238.12,9.875e-05,2]
[342288295,1731694285626,-538.44,9.875e-05,2]
[342288296,1731694285636,-500.0,9.875e-05,2]
[342288297,1731694285645,-500.0,9.875e-05,2]
[342288298,1731694285654,-1166.81,9.875e-05,2]
[342288299,1731694285664,-1166.81,9.875e-05,2]
[342288300,1731694285674,-500.0,9.875e-05,2]
[342288301,1731694285685,-500.0,9.875e-05,2]
[342288302,1731694285695,-500.0,9.875e-05,2]
[342288303,1731694285704,-1115.63,9.875e-05,2]
[342288304,1731694285714,-500.0,9.875e-05,2]
[342288305,1731694285724,-1115.63,9.875e-05,2]
[342288306,1731694285734,-500.0,9.875e-05,2]
[342288307,1731694285744,-609.85,9.875e-05,2]
[342288308,1731694285754,-500.0,9.875e-05,2]
[342288309,1731694285764,-609.85,9.875e-05,2]
[342288310,1731694285774,-870.93,9.875e-05,2]
[342288311,1731694285783,-870.93,9.875e-05,2]
[342288312,1731694285793,-856.18,9.875e-05,2]
[342288313,1731694285805,-894.3,9.875e-05,2]
[342288314,1731694285815,-894.3,9.875e-05,2]
[342288315,1731694285834,-628.6,9.875e-05,2]
[342288316,1731694285844,-628.6,9.875e-05,2]
[342288317,1731694285853,-1290.18,9.875e-05,2]
[342288318,1731694285863,-1290.18,9.875e-05,2]
[342288319,1731694285872,-500.0,9.875e-05,2]
[342288320,1731694285882,-641.07,9.875e-05,2]
[342288321,1731694285892,-500.0,9.875e-05,2]
[342288322,1731694285901,-641.07,9.875e-05,2]
[342288323,1731694285911,-251.59025118,9.875e-05,2]
[342288324,1731694285921,-500.0,9.875e-05,2]
[342288325,1731694285930,-288.35529557,9.875e-05,2]
[342288326,1731694285940,-500.0,9.875e-05,2]
[342288327,1731694285950,-500.0,9.875e-05,2]
[342288328,1731694285959,-500.0,9.875e-05,2]
[342288329,1731694285970,-687.53,9.875e-05,2]
[342288330,1731694286324,-687.53,9.875e-05,2]
[342288331,1731694286336,-592.92,9.875e-05,2]
[342288332,1731694286345,-592.92,9.875e-05,2]
[342288333,1731694286355,-500.0,9.875e-05,2]
[342288334,1731694286365,-500.0,9.875e-05,2]
[342288335,1731694286375,-2092.61,9.875e-05,2]
[342288336,1731694286384,-500.0,9.875e-05,2]
[342288337,1731694286394,-2092.61,9.875e-05,2]
[342288338,1731694286404,-500.0,9.875e-05,2]
[342288339,1731694286413,-500.0,9.875e-05,2]
[342288340,1731694286423,-500.0,9.875e-05,2]
[342288341,1731694286434,-2064.55,9.875e-05,2]
[342288342,1731694286443,-2064.55,9.875e-05,2]
[342288343,1731694286453,-2064.55,9.875e-05,2]
[342288344,1731694286462,-500.0,9.875e-05,2]
[342288345,1731694286472,-500.0,9.875e-05,2]
[342288346,1731694286482,-1962.96,9.875e-05,2]
[342288347,1731694286491,-4793.06,9.875e-05,2]
[342288348,1731694286500,-4793.06,9.875e-05,2]
[342288349,1731694286511,-500.0,9.875e-05,2]
[342288350,1731694286521,-409.62,9.875e-05,2]
[342288351,1731694286530,-500.0,9.875e-05,2]
[342288352,1731694286540,-500.0,9.875e-05,2]
[342288353,1731694286549,-500.0,9.875e-05,2]
[342288354,1731694286561,-2429.02,9.875e-05,2]
[342288355,1731694286571,-2429.02,9.875e-05,2]
[342288356,1731694286582,-575.4,9.875e-05,2]
[342288357,1731694286592,-575.4,9.875e-05,2]
[342288358,1731694286602,-500.0,9.875e-05,2]
[342288359,1731694286612,-500.0,9.875e-05,2]
[342288360,1731694286623,-5463.72661518,9.875e-05,2]
[342288361,1731694287386,-49.31338482,9.875e-05,2]
[342288362,1731694287396,-260.18340354,9.875e-05,2]
[342288363,1731694287425,-2862.75818708,9.875e-05,2]
[342288364,1731694287436,-2390.09840938,9.875e-05,2]
[342288365,1731694287446,-503.85785824,9.875e-05,2]
[342288366,1731694287456,-996.71,9.875e-05,2]
[342288367,1731694287465,-136.13892123,9.875e-05,2]
[342288368,1731694287477,-860.57107877,9.875e-05,2]
[342288369,1731694287487,-500.0,9.875e-05,2]
[342288370,1731694287496,-500.0,9.875e-05,2]
[342288371,1731694287506,-172.67,9.875e-05,2]
[342288372,1731694287515,-724.49,9.875e-05,2]
[342288373,1731694287525,-724.49,9.875e-05,2]
[342288374,1731694287535,-500.0,9.875e-05,2]
[342288375,1731694287544,-500.0,9.875e-05,2]
[342288376,1731694287555,-500.0,9.875e-05,2]
[342288377,1731694287565,-500.0,9.875e-05,2]
[342288378,1731694287575,-803.24,9.875e-05,2]
[342288379,1731694287585,-500.0,9.875e-05,2]
[342288380,1731694287595,-500.0,9.875e-05,2]
[342288381,1731694287605,-500.0,9.875e-05,2]
[342288382,1731694287614,-500.0,9.875e-05,2]
[342288383,1731694287623,-500.0,9.875e-05,2]
[342288384,1731694287633,-726.77,9.875e-05,2]
[342288385,1731694287643,-500.0,9.875e-05,2]
[342288386,1731694287653,-726.77,9.875e-05,2]
[342288387,1731694287663,-6365.68,9.875e-05,2]
[342288388,1731694287673,-380.31693762,9.875e-05,2]
[342288389,1731694287686,-501.47366533,9.875e-05,2]
[342288390,1731694287805,-500.0,9.792e-05,2]
[342288391,1731694287815,-500.0,9.794e-05,2]
[342288392,1731694287825,-5483.88939705,9.875e-05,2]
[342288393,1731694287835,-1930.36,9.875e-05,2]
[342288394,1731694287844,-1930.36,9.875e-05,2]
[342288395,1731694287854,-608.92,9.875e-05,2]
[342288396,1731694287864,-608.92,9.875e-05,2]
[342288397,1731694287873,-2963.35,9.875e-05,2]
[342288398,1731694287883,-500.0,9.875e-05,2]
[342288399,1731694287892,-500.0,9.875e-05,2]
[342288400,1731694287902,-2966.56,9.875e-05,2]
[342288401,1731694287912,-123.88314904,9.875e-05,2]
[342288402,1731694287926,-2842.67685096,9.875e-05,2]
[342288403,1731694287936,-661.07,9.875e-05,2]
[342288404,1731694287945,-2966.56,9.875e-05,2]
[342288405,1731694287955,-661.07,9.875e-05,2]
[342288406,1731694287965,-513.21277432,9.875e-05,2]
[342288407,1731694288519,-500.0,9.791e-05,2]
[342288408,1731694288529,-500.0,9.793e-05,2]
[342288409,1731694288539,-500.0,9.793e-05,2]
[342288410,1731694288550,-103.96580647,9.793e-05,2]
[342288411,1731694288567,-396.03419353,9.793e-05,2]
[342288412,1731694288577,-500.0,9.793e-05,2]
[342288413,1731694288587,-554.82,9.794e-05,2]
[342288414,1731694288597,-500.0,9.794e-05,2]
[342288415,1731694288607,-500.0,9.794e-05,2]
[342288416,1731694288616,-500.0,9.796e-05,2]
[342288417,1731694288626,-500.0,9.797e-05,2]
[342288418,1731694288636,-554.82,9.797e-05,2]
[342288419,1731694288645,-500.0,9.797e-05,2]
[342288420,1731694288654,-554.82,9.798e-05,2]
[342288421,1731694288664,-500.0,9.874e-05,2]
[342288422,1731694288674,-554.82,9.874e-05,2]
[342288423,1731694288686,-4.39598759,9.874e-05,2]
[342288424,1731694288703,-495.60401241,9.874e-05,2]
[342288425,1731694288716,-219.16722568,9.875e-05,2]
[342288426,1731694288729,-732.38,9.875e-05,2]
[342288427,1731694288742,-500.0,9.875e-05,2]
[342288428,1731694288756,-920.5,9.875e-05,2]
[342288429,1731694288771,-500.0,9.875e-05,2]
[342288430,1731694288784,-556.87135633,9.875e-05,2]
[342288431,1731694288798,-920.5,9.875e-05,2]
[342288432,1731694288815,-742.47,9.875e-05,2]
[342288433,1731694288827,-742.47,9.875e-05,2]
[342288434,1731694288838,-1001.64,9.875e-05,2]
[342288435,1731694288851,-426.63837383,9.875e-05,2]
[342288436,1731694288863,-500.0,9.875e-05,2]
[342288437,1731694288876,-500.0,9.875e-05,2]
[342288438,1731694288889,-500.0,9.875e-05,2]
[342288439,1731694288902,-1356.87,9.875e-05,2]
[342288440,1731694288915,-1356.87,9.875e-05,2]
[342288441,1731694288928,-500.0,9.875e-05,2]
[342288442,1731694288940,-162.8267464,9.875e-05,2]
[342288443,1731694288953,-500.0,9.875e-05,2]
[342288444,1731694288966,-613.3,9.875e-05,2]
[342288445,1731694288982,-613.3,9.875e-05,2]
[342288446,1731694288996,-5604.37,9.875e-05,2]
[342288447,1731694289009,-5604.37,9.875e-05,2]
[342288448,1731694289021,-5604.37,9.875e-05,2]
[342288449,1731694289034,-566.14,9.875e-05,2]
[342288450,1731694289049,-566.14,9.875e-05,2]
[342288451,1731694289065,-684.01,9.875e-05,2]
[342288452,1731694289077,-684.01,9.875e-05,2]
[342288453,1731694289088,-859.06,9.875e-05,2]
[342288454,1731694289100,-500.0,9.875e-05,2]
[342288455,1731694289114,-500.0,9.875e-05,2]
[342288456,1731694289128,-2544.5,9.875e-05,2]
[342288457,1731694289139,-2544.5,9.875e-05,2]
[342288458,1731694289149,-500.0,9.875e-05,2]
[342288459,1731694289160,-2544.5,9.875e-05,2]
[342288460,1731694289172,-500.0,9.875e-05,2]
[342288461,1731694289186,-500.0,9.875e-05,2]
[342288462,1731694289197,-190.77335395,9.875e-05,2]
[342288463,1731694289208,-27914.34,9.875e-05,2]
[342288464,1731694289221,-27914.34,9.875e-05,2]
[342288465,1731694289232,-500.0,9.875e-05,2]
[342288466,1731694289252,-500.0,9.875e-05,2]
[342288467,1731694289263,-675.99,9.875e-05,2]
[342288468,1731694289275,-3048.91,9.875e-05,2]
[342288469,1731694289287,-675.99,9.875e-05,2]
[342288470,1731694289299,-3048.91,9.875e-05,2]
[342288471,1731694289312,-3048.91,9.875e-05,2]
[342288472,1731694289323,-1903.08,9.875e-05,2]
[342288473,1731694289335,-500.0,9.875e-05,2]
[342288474,1731694289347,-1903.08,9.875e-05,2]
[342288475,1731694289359,-500.0,9.875e-05,2]
[342288476,1731694289370,-1287.98,9.875e-05,2]
[342288477,1731694289382,-1287.98,9.875e-05,2]
[342288478,1731694289394,-500.0,9.875e-05,2]
[342288479,1731694289405,-500.0,9.875e-05,2]
[342288480,1731694289417,-500.0,9.875e-05,2]
[342288481,1731694289429,-4136.21,9.875e-05,2]
[342288482,1731694289440,-500.0,9.875e-05,2]
[342288483,1731694289452,-500.0,9.875e-05,2]
[342288484,1731694289463,-4136.21,9.875e-05,2]
[342288485,1731694289475,-4136.21,9.875e-05,2]
[342288486,1731694289488,-500.0,9.875e-05,2]
[342288487,1731694289499,-500.0,9.875e-05,2]
[342288488,1731694289511,-858.99,9.875e-05,2]
[342288489,1731694289523,-858.99,9.875e-05,2]
[342288490,1731694289534,-1256.42,9.875e-05,2]
[342288491,1731694289546,-858.99,9.875e-05,2]
[342288492,1731694289559,-1256.42,9.875e-05,2]
[342288493,1731694289570,-562.98,9.875e-05,2]
[342288494,1731694289582,-500.0,9.875e-05,2]
[342288495,1731694289594,-562.98,9.875e-05,2]
[342288496,1731694289606,-500.0,9.875e-05,2]
[342288497,1731694289618,-544.47,9.875e-05,2]
[342288498,1731694289629,-1510.02,9.875e-05,2]
[342288499,1731694289641,-544.47,9.875e-05,2]
[342288500,1731694289653,-1510.02,9.875e-05,2]
[342288501,1731694289665,-2074.67,9.875e-05,2]
[342288502,1731694289677,-500.0,9.875e-05,2]
[342288503,1731694289688,-500.0,9.875e-05,2]
[342288504,1731694289700,-2847.51,9.875e-05,2]
[342288505,1731694289711,-2847.51,9.875e-05,2]
[342288506,1731694289723,-1580.95,9.875e-05,2]
[342288507,1731694289735,-1580.95,9.875e-05,2]
[342288508,1731694289747,-1398.16,9.875e-05,2]
[342288509,1731694289758,-973.26,9.875e-05,2]
[342288510,1731694289770,-575.21,9.875e-05,2]
[342288511,1731694289781,-500.0,9.875e-05,2]
[342288512,1731694289793,-973.26,9.875e-05,2]
[342288513,1731694289806,-575.21,9.875e-05,2]
[342288514,1731694289818,-500.0,9.875e-05,2]
[342288515,1731694289829,-415.75062694,9.875e-05,2]
[342288516,1731694289840,-4678.34,9.875e-05,2]
[342288517,1731694289851,-4678.34,9.875e-05,2]
[342288518,1731694289863,-4678.34,9.875e-05,2]
[342288519,1731694289874,-500.0,9.875e-05,2]
[342288520,1731694289886,-500.0,9.875e-05,2]
[342288521,1731694289897,-2777.64,9.875e-05,2]
[342288522,1731694289910,-866.1,9.875e-05,2]
[342288523,1731694289923,-866.1,9.875e-05,2]
[342288524,1731694289934,-500.0,9.875e-05,2]
[342288525,1731694289947,-866.1,9.875e-05,2]
[342288526,1731694289959,-500.0,9.875e-05,2]
[342288527,1731694289972,-608.09,9.875e-05,2]
[342288528,1731694289984,-608.09,9.875e-05,2]
[342288529,1731694289996,-500.0,9.875e-05,2]
[342288530,1731694290007,-500.0,9.875e-05,2]
[342288531,1731694290020,-945.74,9.875e-05,2]
[342288532,1731694290031,-945.74,9.875e-05,2]
[342288533,1731694290042,-2472.18,9.875e-05,2]
[342288534,1731694290057,-2472.18,9.875e-05,2]
[342288535,1731694290069,-500.0,9.875e-05,2]
[342288536,1731694290080,-500.0,9.875e-05,2]
[342288537,1731694290092,-500.0,9.875e-05,2]
[342288538,1731694290104,-500.0,9.875e-05,2]
[342288539,1731694290116,-2073.68,9.875e-05,2]
[342288540,1731694290127,-328.24889934,9.875e-05,2]
[342288541,1731694290139,-1087.19,9.875e-05,2]
[342288542,1731694290150,-1087.19,9.875e-05,2]
[342288543,1731694290162,-500.0,9.875e-05,2]
[342288544,1731694290174,-500.0,9.875e-05,2]
[342288545,1731694290186,-617.16,9.875e-05,2]
[342288546,1731694290198,-617.16,9.875e-05,2]
[342288547,1731694290209,-775.81,9.875e-05,2]
[342288548,1731694290221,-775.81,9.875e-05,2]
[342288549,1731694290233,-500.0,9.875e-05,2]
[342288550,1731694290244,-775.81,9.875e-05,2]
[342288551,1731694290256,-500.0,9.875e-05,2]
[342288552,1731694290268,-500.0,9.875e-05,2]
[342288553,1731694290280,-500.0,9.875e-05,2]
[342288554,1731694290292,-543.87,9.875e-05,2]
[342288555,1731694290305,-543.87,9.875e-05,2]
[342288556,1731694290318,-1107.14,9.875e-05,2]
[342288557,1731694290330,-218.70601921,9.875e-05,2]
[342288558,1731694290343,-1107.14,9.875e-05,2]
[342288559,1731694290355,-2544.2,9.875e-05,2]
[342288560,1731694290367,-500.0,9.875e-05,2]
[342288561,1731694290379,-500.0,9.875e-05,2]
[342288562,1731694290391,-500.0,9.875e-05,2]
[342288563,1731694290403,-500.0,9.875e-05,2]
[342288564,1731694290415,-500.0,9.875e-05,2]
[342288565,1731694290426,-500.0,9.875e-05,2]
[342288566,1731694290438,-500.0,9.875e-05,2]
[342288567,1731694290451,-1322.36,9.875e-05,2]
[342288568,1731694290462,-500.0,9.875e-05,2]